Workbook

Sheet Introduction
B1: This Biodiesel Production Cost Calculator has 4 worksheets. There are fields that can be completed by the user. It is 8 columns wide and 250 rows long.
B2: Guidelines For Estimating
B3: Soybean Biodiesel Production Costs - Farm Fuel
B4: ="Based on "&Input!D14&",000 Litres per year" -> Based on 15,000 Litres per year
B12: This guide provides you with planning information and a format for calculating costs of production for on-farm biodiesel production based on the cost of growing soybeans on your farm. Opportunity costs related to potential soybean market prices are not included. Adjustments will be necessary when applying these figures to your own enterprise.
B14: The budget estimates are based on a number of assumptions which are clearly defined in the supporting pages. Input costs are based on industry information. Proper plant management in the production process and compliance to all applicable environmental and safety requirements is assumed. Most original equipment manufacturers (OEM) require biodiesel to meet ASTM D6751 fuel quality standard.
B16: Disclaimer: This budget is only a guide and is not intended as an in depth study of the cost of production of the biodiesel industry. Interpretation and use of this information is the responsibility of the user. If you require assistance with developing your individual budget for your operation, call the Agricultural Information Contact Centre at 1-877-424-1300.
B19: Adapted for Ontario by Kevin McKague and Richard Brunke
B20: Engineering Specialists, OMAFRA
B21: email: kevin.mckague@ontario.ca
B22: version October 14, 2014
B23: 2021-10-14
B26: End of worksheet

Sheet Input
B1: This Biodiesel Production Cost Calculator has 4 worksheets. There are fields that can be completed by the user. It is 8 columns wide and 250 rows long.
B2: Biodiesel Production Costs - Input
B4: Assumptions
B6: 1. This budget outlines the cost of production for a biodiesel operation.
B7: 2. Buildings and equipment are valued at new cost.
B8: 3. All soybean feedstock is valued at cost of production.
B9: 4. Feedstock cost (vegetable oil) includes the market value of
B10: soybean meal produced.
B11: 5. All biodiesel produced is for farm use only.
B13: Biodiesel Plant Production | D13: Input Variables | E13: Units | F13: Comments
B14: Plant size - thousands of litres | D14: 15
B15: Days per year | D15: 65
B16: Hours operation per day | D16: 8
B17: Employees per shift - biodiesel production | D17: 0.25
B18: Labour rate | D18: 20 | E18: / hour
B20: Vegetable oil required per litre biodiesel | D20: 0.99088 | E20: litres
B21: Methanol | D21: 6950 | E21: / tonne
B22: Methanol recovery | D22: 25 | E22: %
B23: Catalyst - potassium hydroxide | D23: 12350 | E23: / tonne
B25: Glycerol | D25: 180 | E25: / tonne
B26: Diesel (coloured) farm fuel - ULSD | D26: 1.2 | E26: / litre
B27: On-farm biodiesel blend usage | D27: 100 | E27: %
B28: On-farm fuel efficiency increase with biodiesel use | D28: 1.5 | E28: %
B30: Soybean Oil Production
B31: Soybean feedstock cost (or cost of production) | D31: 310 | E31: / acre
B32: Soybean average yield - bushels | D32: 45 | E32: / acre
B33: Soybean meal - 48% protein | D33: 515 | E33: / tonne
B34: Days per year | D34: 155
B35: Hours operation per day | D35: 24
B36: Employees per shift - soybean oil production | D36: 0.05
B37: Labour rate | D37: 20 | E37: / hour
B38: Soybean oil content | D38: 17.5 | E38: %
B39: Residual oil in soybean meal | D39: 8.5 | E39: %
B40: Shrinkage in oilseed processing | D40: 3 | E40: %
B41: Residual oil in soybean meal (solvent extraction) | D41: 1 | E41: %
B43: Extra oil meal premium | D43: 0 | E43: %
B44: Soybean oil bulk density | D44: 0.92 | E44: kg / L
B46: Other Operating Costs
B47: Hydro | D47: 0.15 | E47: / kWhr
B48: Maintenance | D48: 2.5 | E48: %
B49: Waste/washwater disposal | D49: 0.1333 | E49: / L
B50: Ontario Fuel Tax submission (0.143/L if product used in licensed vehicles) | D50: 0 | E50: / L
B51: Misc. administration (e.g. Registration with Ontario Ministry of Finance) | D51: 0 | E51: / year
B52: Insurance | D52: 0.5 | E52: %
B53: Property taxes | D53: 0.5 | E53: %
B54: Investment rate | D54: 2.5 | E54: %
B55: Operating interest rate | D55: 4 | E55: %
B57: Capital Costs
B58: Buildings | C58: Original Value | E58: Salvage Value | F58: Useful Life
B59: Biodiesel plant | C59: 3000 | E59: 0.1 | F59: 20 | G59: years
B60: Soybean oil plant | C60: 5000 | E60: 0.1 | F60: 20 | G60: years
B61: Total | C61: =SUM(C59:C60) -> 8000 | E61: =AVERAGE(E59:E60) -> 0.1 | F61: =AVERAGE(F59:F60) -> 20 | G61: years
B63: Machinery & Equipment
B64: Biodiesel plant | C64: 3000 | E64: 0.1 | F64: 15 | G64: years
B65: Soybean oil plant | C65: 36000 | E65: 0.1 | F65: 15 | G65: years
B66: Total | C66: =SUM(C64:C65) -> 39000 | E66: =AVERAGE(E64:E65) -> 0.1 | F66: =AVERAGE(F64:F65) -> 15 | G66: years
B68: Total Bldg., Mach. & Equip | C68: =C61+C66 -> 47000
B70: Total Land Value | C70: 10000
B72: Total Capital Investment | C72: =C68+C70 -> 57000
B76: end of worksheet

Sheet Summary
B1: This Biodiesel Production Cost Calculator has 4 worksheets. There are fields that can be completed by the user. It is 8 columns wide and 250 rows long.
B2: =" Biodiesel Production Costs - Farm Fuel" -> Biodiesel Production Costs - Farm Fuel | D2: =TODAY() -> 2023-04-26
B3: ="Based on "&Input!D14&",000 Litres and Soybean Production Costs of" -> Based on 15,000 Litres and Soybean Production Costs of
B4: =" "&TEXT(Input!D31,"$#.##")&" per acre and Yield of "&Input!D32&" bushels per acre" -> $310. per acre and Yield of 45 bushels per acre
B6: A. Operating Costs | C6: Cost/Litre | D6: Total Cost | E6: Your Actual Cost
B7: 1. Input Costs
B8: 1.01 Feedstock (soy oil minus meal value) | C8: =SUM(D8/(Input!D14*1000)) -> -2.026141876 | D8: =Details!G58 -> -30392.12814
B9: 1.02 Methanol | C9: =SUM(D9/(Input!D14*1000)) -> 1.045388309 | D9: =Details!G68 -> 15680.82463
B10: 1.03 Catalyst | C10: =SUM(D10/(Input!D14*1000)) -> 0.1824983165 | D10: =Details!G78 -> 2737.474747
B11: Subtotal Input Cost | C11: =C8+C9+C10 -> -0.7982552511 | D11: =SUM(D8:D10) -> -11973.82877
B13: 2. Other Operating Costs
B14: 2.01 Hydro | C14: =SUM(D14/(Input!D14*1000)) -> 0.242360448 | D14: =Details!G101 -> 3635.40672
B15: 2.02 Maintenance | C15: =SUM(D15/(Input!D14*1000)) -> 0.07833333333 | D15: =Details!G108 -> 1175
B16: 2.03 Waste/washwater disposal | C16: =SUM(D16/(Input!D14*1000)) -> 0.1333 | D16: =Details!G111 -> 1999.5
B17: 2.04 Ontario Fuel Tax submission | C17: =SUM(D17/(Input!D14*1000)) -> 0 | D17: =Details!G112 -> 0
B18: 2.05 Misc. administration | C18: =SUM(D18/(Input!D14*1000)) -> 0 | D18: =Details!G113 -> 0
B19: 2.06 Insurance | C19: =SUM(D19/(Input!D14*1000)) -> 0.01566666667 | D19: =Details!G120 -> 235
B20: 2.07 Property taxes | C20: =SUM(D20/(Input!D14*1000)) -> 0.006 | D20: =Details!G127 -> 90
B21: Subtotal Operating Costs | C21: =SUM(C14:C20) -> 0.475660448 | D21: =SUM(D14:D20) -> 7134.90672
B22: 2.08 Operating interest | C22: =SUM(D22/(Input!D14*1000)) -> 0.009533333333 | D22: =ROUND(Details!G135,0) -> 143
B23: Total Operating Costs | C23: =C21+C22+C11 -> -0.3130614697 | D23: =SUM(D21:D22)+D11 -> -4695.922046
B25: 3. Depreciation
B26: 3.01 Buildings | C26: =SUM(D26/(Input!D14*1000)) -> 0.024 | D26: =Details!G164 -> 360
B27: 3.02 Machinery and equipment | C27: =SUM(D27/(Input!D14*1000)) -> 0.156 | D27: =Details!G170 -> 2340
B29: 4. Investment
B30: 4.01 Buildings | C30: =SUM(D30/(Input!D14*1000)) -> 0.007333333333 | D30: =Details!G179 -> 110
B31: 4.02 Machinery and equipment | C31: =SUM(D31/(Input!D14*1000)) -> 0.03575 | D31: =Details!G186 -> 536.25
B32: 4.03 Land | C32: =SUM(D32/(Input!D14*1000)) -> 0.01666666667 | D32: =Details!G191 -> 250
B33: Total Fixed Costs | C33: =SUM(C26:C32) -> 0.23975 | D33: =SUM(D26:D32) -> 3596.25
B34: Total Operating and Fixed Costs | C34: =C23+C33 -> -0.07331146973 | D34: =D23+D33 -> -1099.672046
B36: C. Labour | C36: =SUM(D36/(Input!D14*1000)) -> 0.4213333333 | D36: =Details!G209 -> 6320
B37: Total Cost of Production | C37: =C34+C36 -> 0.3480218636 | D37: =D36+D34 -> 5220.327954
B39: D. Value
B40: 5. Biodiesel
B41: 5.01 Estimated on-farm biodiesel value | C41: =SUM(D41/(Input!D14*1000)) -> 1.2 | D41: =Details!G216 -> 18000
B42: 5.02 Estimated increased fuel efficiency value | C42: =SUM(D42/(Input!D14*1000)) -> 0.01827411168 | D42: =Details!G231 -> 274.1116751
B43: 5.03 Glycerol sales | C43: =SUM(D43/(Input!D14*1000)) -> 0.016845912 | D43: =Details!G236 -> 252.68868
B44: Total Value | C44: =C41+C42+C43 -> 1.235120024 | D44: =D41+D42+D43 -> 18526.80036
B46: Total Value - Cost of Production | C46: =C44-C37 -> 0.8870981601 | D46: =D44-D37 -> 13306.4724
B48: Breakeven price | C48: $/Litre | D48: $ Cost of Prod./Bushel
B49: A. Operating Costs | C49: =SUM((D23-(D44-D41))/(Input!D14*1000)) -> -0.3481814934 | D49: =SUM(((D44-D23)/(Details!G32))+Details!G36) -> 11.0495419
B50: B. Operating and labour costs | C50: =SUM(((D23+D36)-(D44-D41))/(Input!D14*1000)) -> 0.07315183993 | D50: =SUM(((D44-D23-D36)/(Details!G32))+Details!G36) -> 9.917534014
B51: C. Operating and fixed costs | C51: =SUM((D34-(D44-D41))/(Input!D14*1000)) -> -0.1084314934 | D51: =SUM(((D44-D34)/(Details!G32))+Details!G36) -> 10.40539896
B52: D. Operating, fixed and labour costs | C52: =SUM(((D34+D36)-(D44-D41))/(Input!D14*1000)) -> 0.3129018399 | D52: =SUM(((D44-D34-D36)/(Details!G32))+Details!G36) -> 9.27339108
B55: ="Breakeven Price $/Litre = (Cost - (Total Value - Est. on-farm biodiesel value)) ÷ "&Input!D14&",000 litres" -> Breakeven Price $/Litre = (Cost - (Total Value - Est. on-farm biodiesel value)) ÷ 15,000 litres
B56: ="Breakeven Price $COP/Bu. = Total Value - Cost ÷ "&Details!G32&" bu. of soybeans + $"&Details!G36&" COP per bu." -> Breakeven Price $COP/Bu. = Total Value - Cost ÷ 5583 bu. of soybeans + $6.89 COP per bu.
C57: ="(with soybean meal = $"&Input!D33&"/tonne)" -> (with soybean meal = $515/tonne)
B62: Disclaimer: This budget is only a guide and is not intended as an in-depth study of the cost of production of
B63: this industry. Interpretation and use of this information is the responsibility of the user. No liability for
B64: decisions based on the interpretation and use of the information in this publication is assumed.

Sheet Details
B1: This Biodiesel Production Cost Calculator has 4 worksheets. There are fields that can be completed by the user. It is 8 columns wide and 250 rows long.
B2: Biodiesel Production Worksheet
B5: Assumptions
B6: 1. This budget outlines the cost of production for a biodiesel operation.
B7: 2. Buildings and equipment are valued at new cost.
B8: 3. All soybean feedstock is valued at cost of production.
B9: 4. Feedstock cost (vegetable oil) includes the market value of soybean meal produced.
B10: 5. All biodiesel produced is for farm use only.
B14: A. Operating Costs
C15: 1. Input Costs | I15: Your Values
D16: 1.01 Feedstock - vegetable oil
G17: =Input!D38/100 -> 0.175 | H17: soybean oil content
F18: - | G18: =Input!D39/100 -> 0.085 | H18: residual oil in soybean meal
F19: = | G19: =(G17-G18) -> 0.09 | H19: net oil extraction
F20: - | G20: =Input!D40/100 -> 0.03 | H20: shrinkage in processing
F21: = | G21: =(1-G19-G20) -> 0.88 | H21: net soybean meal yield
F23: x | G23: 1000 | H23: kg per tonne
F24: = | G24: =SUM(G19*G23) -> 90 | H24: kg oil per tonne of soybeans
F25: ÷ | G25: =Input!D44 -> 0.92 | H25: Soybean oil bulk density kg/L
F26: = | G26: =SUM(G24/G25) -> 97.82608696 | H26: Litres oil per tonne of soybeans
G28: =SUM(1000*Input!D14) -> 15000 | H28: Biodiesel Plant Capacity - litres
F29: x | G29: =Input!D20 -> 0.99088 | H29: oil required per litre biodiesel
F30: ÷ | G30: =G26 -> 97.82608696 | H30: Litres oil per tonne of soybeans
F31: = | G31: =SUM((G28*G29)/G30) -> 151.9349333 | H31: Tonnes Soybeans required
G32: =ROUND(G31*36.744,0) -> 5583 | H32: Bushels Soybean required
G34: =Input!D31 -> 310 | H34: Soybean cost of production per acre
F35: ÷ | G35: =Input!D32 -> 45 | H35: Yield per acre
G36: =ROUND(G34/G35,2) -> 6.89 | H36: Feedstock cost of production per bushel
G37: =SUM(G36*36.744) -> 253.16616 | H37: Feedstock cost per tonne
F38: x | G38: =G31 -> 151.9349333 | H38: =H31 -> Tonnes Soybeans required
F39: = | G39: =SUM(G37*G38) -> 38464.78364 | H39: Feedstock - Soybeans
G41: =G31 -> 151.9349333 | H41: =H31 -> Tonnes Soybeans required
F42: x | G42: =G21 -> 0.88 | H42: net soybean meal yield
F43: = | G43: =SUM(G41*G42) -> 133.7027413 | H43: Tonnes soybean meal
G45: =SUM(((Input!D39)-Input!D41)/100*1000) -> 75 | H45: Kg extra oil content in meal
G46: =SUM((Input!D42)*100)/(40.3*(76/100))*(2183*(167.28/100))/100 -> 0 | H46: Soybean oil feed value equivalent
H47: per tonne (167.28 TDN)
G48: =SUM(G45*(G46))/1000 -> 0 | H48: Residual oil soybean meal premium
F49: x | G49: =Input!D43/100 -> 0 | H49: Oil premium payable
F50: = | G50: =SUM(G48*G49) -> 0 | H50: Oil premium per tonne
F51: + | G51: =Input!D33 -> 515 | H51: Soybean meal - 48% protein
F52: = | G52: =SUM((G48*G49)+G51) -> 515 | H52: Soybean meal price per tonne
F53: x | G53: =G43 -> 133.7027413 | H53: Tonnes soybean meal
F54: = | G54: =SUM(G52*G53) -> 68856.91179 | H54: Soybean meal income
G56: =G39 -> 38464.78364 | H56: =H39 -> Feedstock - Soybeans
F57: - | G57: =G54 -> 68856.91179 | H57: =H54 -> Soybean meal income
E58: Total | F58: = | G58: =SUM(G56-G57) -> -30392.12814 | H58: Net Feedstock Cost
D60: 1.02 Methanol
G61: =SUM(1000*Input!D14) -> 15000 | H61: Biodiesel Plant Capacity - litres
F62: x | G62: =Input!D20 -> 0.99088 | H62: oil required per litre biodiesel
F63: x | G63: =Input!D44 -> 0.92 | H63: Soybean oil bulk density kg/L
F64: x | G64: 0.22 | H64: Methanol required
F65: x | G65: =(Input!D22/100) -> 0.25 | H65: Methanol recovery
F66: ÷ | G66: 1000 | H66: kg per tonne
F67: x | G67: =Input!D21 -> 6950 | H67: Methanol per tonne
E68: Total | F68: = | G68: =(G61*G62*G63*G64*(1-G65)*G67)/G66 -> 15680.82463 | H68: Methanol
D70: 1.03 Catalyst
G71: =SUM(1000*Input!D14) -> 15000 | H71: Biodiesel Plant Capacity - litres
F72: x | G72: =Input!D20 -> 0.99088 | H72: oil required per litre biodiesel
F73: x | G73: =Input!D44 -> 0.92 | H73: Soybean oil bulk density kg/L
F74: ÷ | G74: 1000 | H74: kg per tonne
F75: x | G75: 16.21 | H75: kg potassium hydroxide /tonne
F76: ÷ | G76: 1000 | H76: kg per tonne
F77: x | G77: =Input!D23 -> 12350 | H77: Catalyst per tonne
E78: Total | F78: = | G78: =SUM(G71*G72*G73/G74*G75/G76*G77) -> 2737.474747 | H78: Catalyst
C80: 2. Other Operating Costs
D81: 2.01 Hydro
G82: =G31 -> 151.9349333 | H82: Total Tonnes of Soybeans
F83: ÷ | G83: =Input!D34 -> 155 | H83: Days per year - crush
G84: =SUM(G82/G83) -> 0.9802253763 | H84: Tonnes soybeans per day
F85: ÷ | G85: =Input!D35 -> 24 | H85: Hours operation per day - crush
G86: =SUM(G84/G85) -> 0.04084272401 | H86: Tonnes soybeans per hour
F88: x | G88: =G84 -> 0.9802253763 | H88: Tonnes soybeans per day
F89: x | G89: 8.5 | H89: HP per tonne
F90: x | G90: 0.75 | H90: HP to kilowatts
F91: x | G91: =Input!D47 -> 0.15 | H91: Hydro rate - kWhr
F92: x | G92: =Input!D34 -> 155 | H92: Days per year - crush
F93: x | G93: =Input!D35 -> 24 | H93: Hours operation per day - crush
F94: = | G94: =SUM(G88*G89*G90*G91*G92*G93) -> 3486.90672 | H94: Subtotal Hydro - crush
G96: =Input!D14*1000 -> 15000 | H96: Biodiesel Plant Capacity - litres
F97: x | G97: 0.066 | H97: kWhr per litre
F98: x | G98: =Input!D47 -> 0.15 | H98: Hydro rate - kWhr
F99: = | G99: =SUM((G96*G97*G98)) -> 148.5 | H99: Subtotal Hydro - biodiesel
E101: Total | F101: = | G101: =G99+G94 -> 3635.40672 | H101: Hydro
D103: 2.02 Maintenance
G104: =Input!C61 -> 8000 | H104: capital cost - buildings
F105: + | G105: =Input!C66 -> 39000 | H105: capital cost - equipment
F106: = | G106: =SUM(G104:G105) -> 47000 | H106: Total bldg. & equipment
F107: x | G107: =Input!D48/100 -> 0.025 | H107: Maintenance rate
F108: = | G108: =SUM(G106*G107) -> 1175 | H108: Total Maintenance
D110: 2.03 - 2.05 Administration
G111: =Input!D14*1000*Input!D49 -> 1999.5 | H111: Waste/washwater disposal | I111: ____________
G112: =Input!D14*1000 * Input!D50 -> 0 | H112: Ontario Fuel Tax Submission | I112: ____________
G113: =Input!D51 -> 0 | H113: Misc. Administration | I113: ____________
D115: 2.06 Insurance
G116: =Input!C61 -> 8000 | H116: capital cost - buildings
F117: + | G117: =Input!C66 -> 39000 | H117: capital cost - equipment
F118: = | G118: =SUM(G116:G117) -> 47000 | H118: Total bldg. & equipment
F119: x | G119: =Input!D52/100 -> 0.005 | H119: Insurance rate
F120: = | G120: =SUM(G118*G119) -> 235 | H120: Total Insurance
D122: 2.07 Property Taxes
G123: =Input!C61 -> 8000 | H123: capital cost - buildings
F124: + | G124: =Input!C70 -> 10000 | H124: capital cost - land
F125: = | G125: =SUM(G123:G124) -> 18000 | H125: Total bldg. & land
F126: x | G126: =Input!D53/100 -> 0.005 | H126: Property tax rate
F127: = | G127: =SUM(G125*G126) -> 90 | H127: Total Property tax
D129: 2.08 Operating Interest
D130: (Operating interest is charged on one half of the subtotal operating costs)
G132: =Summary!D21 -> 7134.90672 | H132: subtotal operating costs
F133: ÷ | G133: 2 | H133: average
F134: x | G134: =Input!D55 -> 4 | H134: % operating interest rate
F135: = | G135: =ROUND((G132/G133)*(G134),2)/100 -> 142.6981 | H135: Operating Interest
G137: Capital Costs
C139: Buildings
C140: Biodiesel Plant | H140: =Input!C59 -> 3000
C141: Soybean oil Plant | H141: =Input!C60 -> 5000
C142: Total Building Cost | H142: =SUM(H140:H141) -> 8000
C144: Machinery & Equipment
C145: Biodiesel Plant | H145: =Input!C64 -> 3000
C146: Soybean oil Plant | H146: =Input!C65 -> 36000
C147: Total Machinery & Equipment Cost | H147: =SUM(H145:H146) -> 39000
C149: Total Bldg., Mach. & Equip. | H149: =H142+H147 -> 47000
C151: Total Land Value | H151: =Input!C70 -> 10000
C153: Total Capital Investment | H153: =H149+H151 -> 57000
B156: B. Fixed Costs
C157: 3. Depreciation | G157: Original Cost - Salvage Value
G158: Useful Life
D160: 3.01 Buildings
G161: =Input!C61 -> 8000 | H161: original cost
F162: - | G162: =(Input!E61)*Input!C61 -> 800 | H162: salvage value
F163: ÷ | G163: =Input!F61 -> 20 | H163: years useful life
F164: = | G164: =((G161-G162)/G163) -> 360
D166: 3.02 Machinery & Equipment
G167: =Input!C66 -> 39000 | H167: original cost
F168: - | G168: =(Input!E66)*Input!C66 -> 3900 | H168: salvage value
F169: ÷ | G169: =Input!F66 -> 15 | H169: years useful life
F170: = | G170: =((G167-G168)/G169) -> 2340
C172: 4. Investment | G172: Original Cost + Salvage Value x Investment Rate
H173: 2
D174: 4.01 Buildings
G175: =G161 -> 8000 | H175: original cost
F176: + | G176: =G162 -> 800 | H176: salvage value
F177: ÷ | G177: 2 | H177: average
F178: x | G178: =Input!D54 -> 2.5 | H178: % investment rate
F179: = | G179: =(((G175+G176)/G177)*(G178/100)) -> 110
D181: 4.02 Machinery & Equipment
G182: =G167 -> 39000 | H182: original cost
F183: + | G183: =G168 -> 3900 | H183: salvage value
F184: ÷ | G184: 2 | H184: average
F185: x | G185: =Input!D54 -> 2.5 | H185: % investment rate
F186: = | G186: =(((G182+G183)/G184)*(G185/100)) -> 536.25
D188: 4.03 Land
G189: =Input!C70 -> 10000 | H189: land
F190: x | G190: =Input!D54 -> 2.5 | H190: % investment rate
F191: = | G191: =SUM(G189*(G190/100)) -> 250
B193: C. Labour
D194: Soybean oil
G195: =Input!D36 -> 0.05 | H195: Employees per shift
F196: x | G196: =Input!D34 -> 155 | H196: Days per year
F197: x | G197: =Input!D35 -> 24 | H197: Hours operation per day
F198: x | G198: =Input!D37 -> 20 | H198: Labour Rate per hour
E199: Total | F199: = | G199: =SUM(G195*G196*G197*G198) -> 3720 | H199: Soybean oil Labour Cost
G200: =SUM((Input!D34*Input!D35)*Input!D36)/(40*48) -> 0.096875 | H200: Full time job positions
D201: Biodiesel
G202: =Input!D17 -> 0.25 | H202: Employees per shift
F203: x | G203: =Input!D15 -> 65 | H203: Days per year
F204: x | G204: =Input!D16 -> 8 | H204: Hours operation per day
F205: x | G205: =Input!D18 -> 20 | H205: Labour Rate per hour
E206: Total | F206: = | G206: =SUM(G202*G203*G204*G205) -> 2600 | H206: Biodiesel Labour Cost
G207: =SUM((Input!D15*Input!D16)*Input!D17)/(40*48) -> 0.06770833333 | H207: Full time job positions
D209: Total | F209: = | G209: =G206+G199 -> 6320 | H209: Labour
D210: Total | F210: = | G210: =SUM(G207+G200) -> 0.1645833333 | H210: Full time job positions
C212: 5. Value
D213: 5.01 Estimated On-Farm Biodiesel value
G214: =Input!D26 -> 1.2 | H214: Diesel (coloured) farm fuel - #1 ULSD
F215: x | G215: =SUM(1000*Input!D14) -> 15000 | H215: Biodiesel Plant Capacity - litres
E216: Total | F216: = | G216: =G215*G214 -> 18000 | H216: Biodiesel value
D218: 5.02 Estimated Increased Fuel Efficiency value
G219: =SUM(1*(1-(Input!D28/100)))*(1*(1-(Input!D27/100))) -> 0 | H219: ="Diesel fuel used - portion of B"&Input!D27&" blend" -> Diesel fuel used - portion of B100 blend
F220: x | G220: =Input!D26 -> 1.2 | H220: Diesel (coloured) farm fuel - #1 ULSD
F221: = | G221: =SUM(G219*G220) -> 0 | H221: ="Diesel fuel value - portion of B"&Input!D27&" blend" -> Diesel fuel value - portion of B100 blend
G223: =Input!D26 -> 1.2 | H223: Diesel (coloured) farm fuel - #1 ULSD
F224: - | G224: =G221 -> 0 | H224: =H221 -> Diesel fuel value - portion of B100 blend
F225: = | G225: =SUM(G223-G224) -> 1.2 | H225: ="Biodiesel fuel value - portion of B"&Input!D27&" blend" -> Biodiesel fuel value - portion of B100 blend
F226: ÷ | G226: =SUM(1*(1-(Input!D28/100)))*(1*((Input!D27/100))) -> 0.985 | H226: ="Biodiesel fuel used - portion of B"&Input!D27&" blend" -> Biodiesel fuel used - portion of B100 blend
G227: =SUM(G225/G226) -> 1.218274112 | H227: Total Relative biodiesel value
F228: - | G228: =Input!D26 -> 1.2 | H228: Diesel (coloured) farm fuel - #1 ULSD
F229: = | G229: =SUM(G227-G228) -> 0.01827411168 | H229: Balance - Relative biodiesel value
F230: x | G230: =SUM(1000*Input!D14) -> 15000 | H230: Biodiesel Plant Capacity - litres
E231: Total | F231: = | G231: =G230*G229 -> 274.1116751 | H231: Increased Fuel Efficiency value
D233: 5.03 Glycerol Sales
G234: =SUM((Input!D14*1000)*0.0935884)/1000 -> 1.403826 | H234: Tonnes glycerol produced
F235: x | G235: =Input!D25 -> 180 | H235: glycerol per tonne
E236: Total | F236: = | G236: =G235*G234 -> 252.68868 | H236: Glycerol
B238: For further information contact:
B241: Prepared by: | H241: Adapted for Ontario by:
B243: Roy Arnott, P.Ag. | H243: Kevin McKague, P.Eng.
B244: Farm Management Specialist | H244: Ontario Ministry of Agriculture, Food and Rural Affairs
B245: Manitoba Agriculture, Food and Rural Initiatives | H245: Woodstock, ON 519-835-6078
B246: Killarney GO Centre 204-523-6424 | H246: email: kevin.mckague@ontario.ca
... 1 more rows
